[Event "6th Porticcio Open 2019"]
[Site "Porticcio"]
[Date "2019.07.06"]
[Round "9.6"]
[White "Sanchez, Louis"]
[Black "Zhigalko, Sergei"]
[Result "1-0"]
[ECO "A07"]
[WhiteElo "2316"]
[BlackElo "2594"]
[Annotator "ChessBase"]
[PlyCount "92"]
[EventDate "2019.06.23"]
[EventType "swiss"]
[EventCountry "FRA"]
[SourceTitle "playchess.com"]
[Source "ChessBase"]
[SourceQuality "1"]
[TimeControl "5400+30"]

1. Nf3 {[%emt 0:00:00]} Nf6 {[%emt 0:02:04]} 2. g3 {[%emt 0:00:00]} d5 {[%emt 0:00:11]} 3. Bg2 {[%emt 0:00:08]} c6 {[%emt 0:00:04]} 4. O-O {[%emt 0:01:04]} Bg4 {[%emt 0:00:05]} 5. c4 {[%emt 0:00:48]} e6 {[%emt 0:00:18]} 6. cxd5 {[%emt 0:00:39]} exd5 {[%emt 0:06:00]} 7. Qb3 {[%emt 0:01:22]} Qb6 {[%emt 0:00:36]} 8. Qc2 {[%emt 0:00:24]} Nbd7 {[%emt 0:14:58]} 9. d3 {[%emt 0:01:32]} Be7 {[%emt 0:04:01]} 10. Nc3 {[%emt 0:00:45]} O-O {[%emt 0:04:04]} 11. e4 {[%emt 0:00:54]} Rfe8 {[%emt 0:06:44]} 12. Be3 {[%emt 0:02:24]} Qa6 {[%emt 0:00:36]} 13. h3 {[%emt 0:03:51]} Bxf3 {[%emt 0:18:07]} 14. Bxf3 {[%emt 0:00:23]} dxe4 {[%emt 0:05:39]} 15. dxe4 {[%emt 0:00:22]} Bc5 {[%emt 0:00:03]} 16. Bf4 {[%emt 0:08:37]} Ne5 {[%emt 0:03:59]} 17. Be2 {[%emt 0:02:14]} Qa5 {[%emt 0:00:56]} 18. Rad1 {[%emt 0:05:52]} Ng6 {[%emt 0:10:16]} 19. Bc1 {[%emt 0:13:21]} Re7 {[%emt 0:01:18]} 20. a3 {[%emt 0:11:54]} Qc7 {[%emt 0:00:21]} 21. Kg2 {[%emt 0:00:09]} Nd7 {[%emt 0:07:11]} 22. f4 {[%emt 0:01:55]} f6 {[%emt 0:00:02]} 23. Na4 {[%emt 0:06:20]} Bb6 {[%emt 0:00:14]} 24. Bd2 {[%emt 0:06:39]} Rae8 {[%emt 0:01:26]} 25. Bf3 {[%emt 0:01:37]} Ba5 {[%emt 0:02:28]} 26. b4 {[%emt 0:06:27]} Bb6 {[%emt 0:00:01]} 27. Nxb6 {[%emt 0:00:42]} axb6 {[%emt 0:01:47]} 28. a4 {[%emt 0:00:18]} Ngf8 {[%emt 0:00:03]} 29. Be3 {[%emt 0:03:11]} Ne6 {[%emt 0:00:14]} 30. Rd3 {[%emt 0:02:29]} Kh8 {[%emt 0:00:59]} 31. h4 {[%emt 0:01:23]} Nb8 {[%emt 0:04:33]} 32. Rfd1 {[%emt 0:01:40]} Na6 {[%emt 0:00:06]} 33. Qd2 {[%emt 0:01:37]} c5 {[%emt 0:03:07]} 34. b5 {[%emt 0:01:03]} Nb8 {[%emt 0:02:07]} 35. Rd5 {[%emt 0:01:44]} Nf8 {[%emt 0:01:32]} 36. h5 {[%emt 0:01:56]} Nbd7 {[%emt 0:00:31]} 37. Rd6 {[%emt 0:03:33]} c4 {[%emt 0:01:17]} 38. Qc3 {[%emt 0:02:49]} Ra8 {[%emt 0:00:02]} 39. Qc2 {[%emt 0:02:39]} Ne6 {[%emt 0:00:56]} 40. R1d5 {[%emt 0:01:36]} Nec5 {[%emt 0:00:20]} 41. Bxc5 {[%emt 0:01:20]} Nxc5 {[%emt 0:00:01]} 42. Qxc4 {[%emt 0:00:18]} Ree8 {[%emt 0:00:02]} 43. h6 {[%emt 0:01:44]} Rxa4 {[%emt 0:01:01]} 44. Qc2 {[%emt 0:00:50]} Rea8 {[%emt 0:01:08]} 45. Kh3 {[%emt 0:01:18]} gxh6 {[%emt 0:00:30]} 46. Qc3 {[%emt 0:00:35]} Qe7 1-0

[Event "6th Porticcio Open 2019"]
[Site "Porticcio"]
[Date "2019.07.06"]
[Round "9.7"]
[White "Yankelevich, Lev"]
[Black "Delorme, Axel"]
[Result "1/2-1/2"]
[ECO "D14"]
[WhiteElo "2484"]
[BlackElo "2502"]
[Annotator "ChessBase"]
[PlyCount "32"]
[EventDate "2019.06.23"]
[EventType "swiss"]
[EventCountry "FRA"]
[SourceTitle "playchess.com"]
[Source "ChessBase"]
[SourceQuality "1"]
[TimeControl "5400+30"]

1. d4 {[%emt 0:00:00]} d5 {[%emt 0:00:03]} 2. c4 {[%emt 0:00:22]} c6 {[%emt 0:01:03]} 3. cxd5 {[%emt 0:02:08]} cxd5 {[%emt 0:00:36]} 4. Nc3 {[%emt 0:00:04]} Nf6 {[%emt 0:00:11]} 5. Nf3 {[%emt 0:00:46]} Nc6 {[%emt 0:00:04]} 6. Bf4 {[%emt 0:00:06]} Bf5 {[%emt 0:03:57]} 7. e3 {[%emt 0:00:35]} e6 {[%emt 0:01:31]} 8. Bd3 {[%emt 0:07:50]} Bxd3 {[%emt 0:00:35]} 9. Qxd3 {[%emt 0:00:11]} Bd6 {[%emt 0:00:07]} 10. Bxd6 {[%emt 0:00:40]} Qxd6 {[%emt 0:00:05]} 11. O-O {[%emt 0:00:06]} O-O {[%emt 0:00:42]} 12. Rfc1 {[%emt 0:00:17]} Rfc8 {[%emt 0:01:04]} 13. Nb5 {[%emt 0:01:31]} Qe7 {[%emt 0:02:32]} 14. Nc3 {[%emt 0:01:57]} Qd6 {[%emt 0:04:04]} 15. Nb5 {[%emt 0:00:10]} Qe7 {[%emt 0:00:21]} 16. Nc3 {[%emt 0:00:10]} Qd6 {[%emt 0:04:32]} 1/2-1/2

[Event "6th Porticcio Open 2019"]
[Site "Porticcio"]
[Date "2019.07.06"]
[Round "9.8"]
[White "Kovchan, Alexander"]
[Black "Guichard, Pauline"]
[Result "1-0"]
[ECO "C60"]
[WhiteElo "2566"]
[BlackElo "2409"]
[Annotator "ChessBase"]
[PlyCount "55"]
[EventDate "2019.06.23"]
[EventType "swiss"]
[EventCountry "FRA"]
[SourceTitle "playchess.com"]
[Source "ChessBase"]
[SourceQuality "1"]
[TimeControl "5400+30"]

1. e4 {[%emt 0:00:00]} e5 {[%emt 0:00:00]} 2. Nf3 {[%emt 0:00:00]} Nc6 {[%emt 0:00:00]} 3. Bb5 {[%emt 0:00:08]} g6 {[%emt 0:00:50]} 4. c3 {[%emt 0:01:01]} a6 {[%emt 0:01:31]} 5. Bxc6 {[%emt 0:00:34]} dxc6 {[%emt 0:04:31]} 6. d4 {[%emt 0:00:13]} exd4 {[%emt 0:07:21]} 7. cxd4 {[%emt 0:00:08]} Bg4 {[%emt 0:02:53]} 8. Qb3 {[%emt 0:02:22]} Bxf3 {[%emt 0:06:21]} 9. gxf3 {[%emt 0:00:43]} Rb8 {[%emt 0:00:18]} 10. Be3 {[%emt 0:05:40]} Bg7 {[%emt 0:00:53]} 11. Nc3 {[%emt 0:00:28]} Nf6 {[%emt 0:07:35]} 12. O-O-O {[%emt 0:01:14]} O-O {[%emt 0:01:27]} 13. Rhg1 {[%emt 0:01:09]} Re8 {[%emt 0:01:55]} 14. h4 {[%emt 0:23:21]} Qd7 {[%emt 0:08:10]} 15. Rg5 {[%emt 0:02:13]} Qh3 {[%emt 0:03:45]} 16. e5 {[%emt 0:04:49]} Nd5 {[%emt 0:05:53]} 17. Nxd5 {[%emt 0:01:57]} cxd5 {[%emt 0:00:05]} 18. Qxd5 {[%emt 0:00:38]} Qxh4 {[%emt 0:02:32]} 19. Rdg1 {[%emt 0:00:56]} c5 {[%emt 0:04:47]} 20. f4 {[%emt 0:07:38]} Qh3 {[%emt 0:19:59]} 21. dxc5 {[%emt 0:05:04]} Red8 {[%emt 0:01:10]} 22. Qe4 {[%emt 0:03:24]} Qe6 {[%emt 0:00:26]} 23. f5 {[%emt 0:04:41]} Qxa2 {[%emt 0:00:33]} 24. f6 {[%emt 0:00:22]} Bf8 {[%emt 0:01:49]} 25. e6 {[%emt 0:01:30]} fxe6 {[%emt 0:08:30]} 26. Rxg6+ {[%emt 0:00:59]} Kf7 {[%emt 0:00:07]} 27. Rg8 {[%emt 0:02:51]} Ke8 {[%emt 0:02:38]} 28. Bh6 {[%emt 0:03:37]} 1-0